bitfinex-derivatives/quotes_SOLF0:USTF0_20260304
["timestamp","ask_amount","ask_price","bid_price","bid_amount"]
[1772657903742,0.05548956,92.956,92.884,3.8697878]
[1772657904539,9.68,92.932,92.886,3.90893152]
[1772657905147,9.68,92.932,92.888,3.90893152]
[1772657906338,9.68,92.932,92.89,3.85290162]
[1772657906944,9.68,92.932,92.895,11.65283893]
[1772657907145,0.17004473,92.939,92.895,0.00083893]
[1772657908349,9.681,92.919,92.895,0.00083893]
[1772657913256,9.682,92.912,92.895,0.00083893]
[1772657917063,0.20477087,92.926,92.895,0.00083893]
[1772657917663,9.683,92.902,92.895,0.00083893]
[1772657919758,8.33291843,92.92,92.895,0.00083893]
[1772657920159,8.87516107,92.92,92.895,0.00083893]
[1772657920360,9.683,92.904,92.853,9.688]
[1772657920560,9.683,92.904,92.853,13.35480267]
[1772657920763,9.683,92.904,92.854,3.66680267]
[1772657921155,9.683,92.896,92.854,3.66680267]
[1772657922259,0.91357062,92.895,92.844,3.61728631]
[1772657922464,9.684,92.889,92.847,3.61728631]
[1772657922865,0.91357062,92.912,92.847,3.61728631]
[1772657924166,9.683,92.9,92.851,3.61728631]
[1772657924562,13.01999522,92.9,92.851,3.61728631]
[1772657924762,9.685,92.884,92.851,3.61728631]
[1772657925163,4.23788935,92.9,92.851,3.61728631]
[1772657925765,9.684,92.892,92.851,3.61728631]
[1772657926468,3.33699522,92.91,92.861,3.61728631]
[1772657927260,3.33699522,92.9,92.861,3.61728631]
[1772657927465,0.84992501,92.916,92.861,3.61728631]
[1772657927663,3.33699522,92.91,92.861,3.61728631]
[1772657929172,9.682,92.908,92.862,3.68949505]
[1772657930180,9.683,92.901,92.862,3.68949505]
[1772657930671,9.685,92.885,92.844,3.68949505]
[1772657930865,3.33699522,92.91,92.861,3.68949505]
[1772657932463,9.683,92.895,92.861,3.68949505]
[1772657933771,9.684,92.888,92.861,3.68949505]
[1772657935171,9.684,92.888,92.845,13.37849505]
[1772657935372,9.685,92.881,92.845,3.68949505]
[1772657935676,3.33699522,92.88,92.845,3.68949505]
[1772657936372,3.33699522,92.88,92.829,3.68949505]
[1772657936971,3.33699522,92.88,92.83,3.33699522]
[1772657937170,3.33699522,92.88,92.831,3.68949505]
[1772657937372,9.686,92.871,92.831,3.68949505]
[1772657938372,0.67858352,92.888,92.833,3.68949505]
[1772657938770,559.59651297,92.979,92.818,1.87394994]
[1772657938771,0.65241897,92.905,92.851,3.68949505]
[1772657939070,9.684,92.888,92.851,3.68949505]
[1772657940476,9.685,92.881,92.84,3.3382606]
[1772657940667,3.3382606,92.9,92.85,7.02775565]
[1772657940866,0.67654317,92.906,92.851,3.68949505]
[1772657941072,0.67654317,92.906,92.769,26.48069907]
[1772657941073,0.67654317,92.858,92.731,3.68949505]
[1772657941266,0.67654317,92.821,92.76,3.3382606]
[1772657941467,0.67654317,92.848,92.8,3.3382606]
[1772657941677,0.73051201,92.879,92.82,3.3382606]
[1772657941872,9.05883117,92.878,92.84,3.3382606]
[1772657942077,9.78934318,92.897,92.84,3.3382606]
[1772657942274,3.3382606,92.87,92.808,3.68949505]
[1772657942478,9.05883117,92.869,92.81,3.3382606]
[1772657942674,3.3382606,92.87,92.81,3.3382606]
[1772657943175,3.3382606,92.87,92.808,3.68949505]
[1772657943176,13.0242606,92.87,92.82,3.3382606]
[1772657943377,9.686,92.87,92.82,3.3382606]
[1772657943580,9.688,92.852,92.808,3.68949505]
[1772657943873,3.3382606,92.85,92.8,3.3382606]
[1772657944073,9.688,92.852,92.8,3.3382606]
[1772657944274,9.689,92.843,92.79,3.3382606]
[1772657944483,1.02653316,92.878,92.791,3.68949505]
[1772657944873,9.688,92.856,92.792,3.68949505]
[1772657945072,1.02653316,92.878,92.792,3.68949505]
[1772657945576,1.02653316,92.904,92.831,3.68949505]
[1772657946183,0.95089804,92.929,92.831,3.68949505]
[1772657946779,0.95089804,92.929,92.833,3.68949505]
[1772657947781,7.15903103,92.87,92.801,3.68949505]
[1772657948079,3.37420398,92.849,92.76,7.15903103]
[1772657948278,9.689,92.843,92.786,9.695]
[1772657948479,9.689,92.843,92.765,1.87477272]
[1772657948673,3.37420398,92.849,92.765,1.87477272]
[1772657949181,9.689,92.847,92.784,9.695]
[1772657949382,3.37420398,92.868,92.784,9.695]
[1772657949580,9.687,92.858,92.794,9.694]
[1772657949777,3.37420398,92.899,92.8,7.15903103]
[1772657949976,3.37420398,92.899,92.801,3.68949505]
[1772657950272,3.37420398,92.879,92.801,3.68949505]
[1772657950883,3.37420398,92.858,92.801,3.68949505]
[1772657951077,3.37420398,92.858,92.781,3.68949505]
[1772657951673,3.37420398,92.888,92.801,3.68949505]
[1772657952183,9.685,92.885,92.818,9.691]
[1772657952379,3.37420398,92.888,92.801,3.68949505]
[1772657952573,3.37420398,92.888,92.82,7.15903103]
[1772657952779,9.683,92.896,92.832,3.68949505]
[1772657953185,3.37420398,92.918,92.832,3.68949505]
[1772657953388,3.37420398,92.918,92.844,3.68949505]
[1772657954280,3.37420398,92.918,92.847,9.688]
[1772657954281,9.681,92.917,92.847,9.688]
[1772657954577,9.681,92.917,92.782,150.822]
[1772657954578,3.37420398,92.916,92.831,3.68949505]
[1772657954779,3.37420398,92.916,92.788,150.813]
[1772657954780,9.683,92.903,92.851,3.68949505]
[1772657954979,3.37420398,92.916,92.851,3.68949505]
[1772657955687,3.37420398,92.936,92.861,3.68949505]
[1772657956078,3.37420398,92.936,92.86,7.15903103]
[1772657956079,9.68,92.924,92.864,3.68949505]
[1772657957480,3.37420398,92.955,92.865,3.68949505]
[1772657957782,3.37420398,92.997,92.901,3.68949505]
[1772657958080,3.37420398,92.997,92.88,7.15903103]
[1772657958081,3.37420398,93.029,92.934,3.68949505]
[1772657958487,9.673,92.995,92.934,3.68949505]
[1772657958682,3.37420398,93.005,92.934,3.68949505]
[1772657959284,9.672,93.003,92.934,3.68949505]
[1772657959785,3.37420398,93.005,92.937,3.83708325]
[1772657959977,3.57540089,93.025,92.95,7.15903103]
[1772657960180,9.671,93.02,92.952,3.83708325]
[1772657960379,3.57540089,93.025,92.931,3.83708325]
[1772657960583,3.57540089,93.009,92.91,3.83708325]
[1772657960788,9.675,92.981,92.912,3.83708325]
[1772657960984,150.405,93.041,92.912,3.83708325]
[1772657960985,3.57540089,93.01,92.93,7.15903103]
[1772657961187,9.673,92.993,92.931,13.51708325]
[1772657961384,3.57540089,93.01,92.932,3.83708325]
[1772657961682,3.57540089,93.019,92.921,3.83708325]
[1772657962182,9.674,92.987,92.922,3.83708325]
[1772657962386,3.57540089,92.998,92.891,3.83708325]
[1772657962586,9.678,92.952,92.891,3.83708325]
[1772657962786,3.57540089,92.972,92.891,3.83708325]
[1772657963588,9.676,92.963,92.893,3.83708325]
[1772657963885,9.98026444,93.025,92.88,7.15903103]
[1772657963886,3.57540089,93.006,92.901,3.83708325]
[1772657964292,9.676,92.965,92.901,3.83708325]
[1772657964690,3.57540089,92.943,92.88,3.83708325]
[1772657964891,3.57540089,92.964,92.88,3.83708325]
[1772657965186,3.57540089,92.984,92.881,3.83708325]
[1772657965587,9.675,92.973,92.881,3.83708325]
[1772657965894,3.65557592,93.027,92.941,3.6803554]
[1772657966282,3.65557592,93.027,92.964,3.6803554]
[1772657966689,3.65557592,93.049,92.964,3.6803554]
[1772657967686,3.65557592,93.049,92.981,3.6803554]
[1772657967891,3.65557592,93.079,92.981,3.6803554]
[1772657968490,3.65557592,93.046,92.951,3.6803554]
[1772657970291,9.672,93.007,92.951,3.6803554]
[1772657970588,3.65557592,93.026,92.94,7.15903103]
[1772657970793,19.333,93.063,92.896,31.26023629]
[1772657970794,3.65557592,93.048,92.961,3.6803554]
[1772657971188,19.326,93.094,92.925,19.361]
[1772657971189,3.65557592,93.065,92.981,3.6803554]
[1772657972191,3.65557592,93.079,93.002,3.6803554]
[1772657972605,3.65557592,93.059,92.981,3.6803554]
[1772657972791,9.669,93.035,92.981,3.6803554]
[1772657972991,3.65557592,93.059,92.981,3.6803554]
[1772657973288,9.667,93.056,92.994,3.6803554]
[1772657973991,3.65557592,93.079,92.994,3.6803554]
[1772657974492,9.668,93.046,92.994,3.6803554]
[1772657974691,3.65557592,93.045,92.973,3.6803554]
[1772657975393,3.65557592,93.039,92.931,3.6803554]
[1772657975785,3.65557592,93.059,92.99,7.15903103]
[1772657975990,3.65557592,93.059,92.991,3.6803554]
[1772657976191,3.65557592,93.099,93.011,3.6803554]
[1772657976497,9.664,93.081,93.012,3.6803554]
[1772657977194,3.65557592,93.08,92.992,3.6803554]
[1772657977593,3.65557592,93.08,92.993,3.6803554]
[1772657977797,3.65557592,93.08,92.949,150.551]
[1772657977798,3.65557592,93.08,93.011,3.6803554]
[1772657978091,3.65557592,93.109,93.011,3.6803554]
[1772657978392,3.65557592,93.109,92.949,150.551]
[1772657978393,3.65557592,93.069,92.986,3.6803554]
[1772657978598,3.65557592,93.049,92.961,3.6803554]
[1772657978798,9.671,93.017,92.961,3.6803554]
[1772657979195,3.65557592,93.026,92.961,3.6803554]
[1772657979597,3.65557592,93.026,92.941,3.6803554]
[1772657979793,3.65557592,93.069,92.98,7.15903103]
[1772657979998,3.65557592,93.069,92.981,3.6803554]
[1772657980593,3.65557592,93.05,92.981,3.6803554]
[1772657980900,3.65557592,93.029,92.931,3.6803554]
[1772657981594,3.65557592,93.009,92.911,3.6803554]
[1772657981799,3.65557592,93.049,92.961,3.6803554]
[1772657982092,3.65557592,93.049,92.913,150.609]
[1772657982093,3.65557592,93.049,92.981,3.6803554]
[1772657982289,3.65557592,93.049,92.958,3.6803554]
[1772657983700,3.65557592,93.079,92.971,3.6803554]
[1772657984293,3.65557592,93.059,92.971,3.6803554]
[1772657984596,150.313,93.097,92.951,3.6803554]
[1772657984597,3.65557592,93.039,92.951,3.6803554]
[1772657984798,3.65557592,93.039,92.952,9.678]
[1772657984799,9.672,93.006,92.952,9.678]
[1772657984994,3.65557592,93.019,92.951,3.6803554]
[1772657985198,9.672,93.006,92.951,3.6803554]
[1772657985396,3.65557592,93.042,92.951,3.6803554]
[1772657985793,3.65557592,93.039,92.951,3.6803554]
[1772657986196,9.672,93.009,92.951,3.6803554]
[1772657986393,3.65557592,93.039,92.951,3.6803554]
[1772657987503,9.669,93.038,92.97,3.6803554]
[1772657987703,3.65557592,93.039,92.97,3.6803554]
[1772657987903,9.671,93.016,92.957,3.6803554]
[1772657988101,3.65557592,93.117,92.957,3.6803554]
[1772657988301,3.65557592,93.079,92.981,3.6803554]
[1772657988502,9.668,93.045,92.986,9.674]
[1772657988694,7.15903103,93.06,92.981,3.6803554]
[1772657988895,3.50938186,93.059,92.981,3.6803554]
[1772657989095,150.395,93.046,92.916,3.47608219]
[1772657989301,7.15903103,93.01,92.916,3.47608219]
[1772657989602,150.326,93.089,92.936,6.70221935]
[1772657989904,7.15903103,93.05,92.941,6.70221935]
[1772657990102,9.672,93.004,92.941,6.70221935]
[1772657990304,7.15903103,93.01,92.941,6.70221935]
[1772657991001,9.674,92.987,92.941,6.70221935]
[1772657991604,9.672,93.007,92.944,9.678]
[1772657991808,9.672,93.007,92.945,6.74857597]
[1772657992304,7.15903103,93.02,92.924,6.74857597]
[1772657992503,7.15903103,93.01,92.924,6.74857597]
[1772657992705,7.15903103,92.99,92.924,6.74857597]
[1772657993408,7.15903103,92.97,92.897,6.74857597]
[1772657993707,7.15903103,93.0,92.901,6.73346133]
[1772657993908,7.15903103,92.98,92.901,6.73346133]
[1772657995004,7.15903103,93.0,92.901,6.73346133]
[1772657995410,7.15903103,92.96,92.88,6.73346133]
[1772657995812,7.15903103,92.98,92.897,6.85482547]
[1772657996218,9.677,92.961,92.9,16.53782547]
[1772657996416,9.677,92.961,92.901,6.85482547]
[1772657996915,9.677,92.961,92.902,9.683]
[1772657997217,9.83319059,93.047,92.901,6.85482547]
[1772657997410,7.15903103,93.0,92.901,6.85482547]
[1772657997714,7.15903103,92.98,92.894,6.8326117]
[1772657998304,9.677,92.96,92.9,9.683]
[1772657998608,7.15903103,92.98,92.879,6.8326117]
[1772657998808,7.15903103,92.92,92.846,6.8326117]
[1772657999514,7.15903103,92.9,92.815,6.8326117]
[1772657999712,16.89179964,92.955,92.754,150.867]
[1772657999713,7.15903103,92.93,92.831,6.81218996]
[1772657999911,150.514,92.973,92.766,150.847]
[1772657999912,150.606,92.916,92.766,6.81218996]
[1772658000112,7.15903103,92.94,92.7,203.40657687]
[1772658000113,9.685,92.884,92.781,6.81218996]
[1772658000315,7.15903103,92.91,92.801,6.81218996]
[1772658000614,8.34579097,92.91,92.81,8.34579097]
[1772658000810,8.34579097,92.88,92.806,6.81218996]
[1772658001012,8.34579097,92.9,92.806,6.81218996]
[1772658001312,8.34579097,92.88,92.806,6.81218996]
[1772658001712,9.688,92.853,92.806,6.81218996]
[1772658001917,8.34579097,92.88,92.806,6.81218996]
[1772658002318,19.358,92.941,92.806,6.81218996]
[1772658002319,8.34579097,92.9,92.806,6.81218996]
[1772658002518,9.686,92.867,92.806,6.81218996]
[1772658003022,8.34579097,92.86,92.779,6.73231636]
[1772658003213,8.34579097,92.89,92.779,6.73231636]
[1772658003513,8.34579097,92.88,92.779,6.73231636]
[1772658003821,9.687,92.864,92.792,6.73231636]
[1772658004414,9.687,92.864,92.794,6.83377107]
[1772658005420,9.687,92.864,92.796,6.83377107]
[1772658005815,19.365,92.91,92.774,6.75838104]
[1772658005816,8.34579097,92.86,92.774,6.75838104]
[1772658007117,9.691,92.819,92.774,6.75838104]
[1772658007319,9.691,92.819,92.753,6.75838104]
[1772658007622,8.34579097,92.85,92.753,6.75838104]
[1772658007924,19.364,92.91,92.767,6.75349945]
[1772658008112,150.56,92.944,92.745,1.87528796]
[1772658008113,8.34579097,92.9,92.781,6.75349945]
[1772658008423,8.34579097,92.9,92.821,6.75349945]
[1772658008816,9.685,92.88,92.821,6.75349945]
[1772658009323,8.34579097,92.88,92.8,6.75349945]
[1772658010425,8.34579097,92.9,92.801,6.82216782]
[1772658010817,8.34579097,92.88,92.801,6.82216782]
[1772658011222,150.623,92.906,92.801,6.82216782]
[1772658011517,9.688,92.851,92.801,6.82216782]
[1772658011720,8.34579097,92.86,92.746,6.47018097]
[1772658011920,9.691,92.828,92.761,6.47018097]
[1772658012315,9.692,92.818,92.761,6.47018097]
[1772658012717,8.34579097,92.84,92.761,6.47018097]
[1772658013022,9.693,92.807,92.761,6.47018097]
[1772658013625,8.34579097,92.84,92.761,6.47018097]
[1772658014527,150.666,92.879,92.761,6.47018097]
[1772658014721,8.34579097,92.86,92.761,6.47018097]
[1772658015516,19.37,92.882,92.761,6.47018097]
[1772658015721,8.34579097,92.86,92.761,6.47018097]
[1772658015923,9.691,92.824,92.765,9.697]
[1772658016124,9.691,92.824,92.766,6.45009353]
[1772658021229,9.688,92.851,92.789,6.4041108]
[1772658021432,8.34579097,92.86,92.789,6.4041108]
[1772658022126,9.69,92.831,92.789,6.4041108]
[1772658022523,150.626,92.904,92.789,6.4041108]
[1772658022733,8.34579097,92.88,92.793,6.38981198]
[1772658023133,9.689,92.846,92.793,6.38981198]
[1772658023729,8.34579097,92.86,92.772,6.38981198]
[1772658024226,9.692,92.817,92.772,6.38981198]
[1772658025134,9.691,92.827,92.772,6.38981198]
[1772658026829,9.692,92.818,92.772,6.38981198]
[1772658027033,8.34579097,92.84,92.772,6.38981198]
[1772658027434,9.691,92.82,92.772,6.38981198]
[1772658027735,8.34579097,92.84,92.772,6.38981198]
[1772658027931,9.691,92.82,92.772,6.38981198]
[1772658028635,9.69,92.83,92.772,6.38981198]
[1772658029231,9.691,92.821,92.772,6.38981198]
[1772658030634,9.691,92.821,92.773,6.38419157]
[1772658031034,9.69,92.831,92.774,16.08019157]
[1772658031231,9.69,92.831,92.775,6.38419157]
[1772658031934,9.689,92.84,92.785,6.39197933]
[1772658033134,9.688,92.849,92.789,6.39197933]
[1772658034036,9.686,92.868,92.796,6.3401123]
[1772658034234,8.34579097,92.89,92.796,6.3401123]
[1772658035532,19.357,92.945,92.813,6.3401123]
[1772658035738,19.357,92.945,92.79,150.809]
[1772658035739,8.34579097,92.93,92.831,6.3401123]
[1772658035938,9.681,92.919,92.863,9.687]
[1772658036138,9.681,92.919,92.863,16.04522324]
[1772658036541,8.34579097,92.94,92.874,9.686]
[1772658036733,8.34579097,92.96,92.875,6.35822324]
[1772658037331,9.679,92.943,92.877,6.35822324]
[1772658037833,9.678,92.953,92.877,6.35822324]
[1772658038037,261.02022069,93.04,92.891,6.32212568]
[1772658038234,8.34579097,93.0,92.891,6.32212568]
[1772658038438,8.34579097,92.98,92.907,9.682]
[1772658039141,8.34579097,93.0,92.907,16.00412568]
[1772658039540,9.675,92.973,92.907,16.00412568]
[1772658039743,8.34579097,93.0,92.919,9.681]
[1772658040938,8.34579097,93.0,92.908,6.37230203]
[1772658041144,8.34579097,92.96,92.881,6.37230203]
[1772658041946,9.678,92.944,92.881,6.37230203]
[1772658042150,8.34579097,92.94,92.862,6.36771417]
[1772658042646,8.34579097,92.94,92.841,6.36771417]
[1772658043051,9.683,92.904,92.841,6.36771417]
[1772658043342,9.9147519,92.966,92.841,6.36771417]
[1772658043343,8.34579097,92.94,92.841,6.36771417]
[1772658043854,8.34579097,92.94,92.853,6.36771417]
[1772658044654,9.68,92.93,92.865,9.687]
[1772658044844,8.34579097,92.94,92.853,6.36771417]
[1772658045350,9.681,92.921,92.854,9.688]
[1772658045547,9.681,92.921,92.854,16.0394005]
[1772658045749,9.681,92.921,92.855,6.40786233]
[1772658046855,9.678,92.945,92.876,9.685]
[1772658047052,8.34579097,92.96,92.874,6.40786233]
[1772658048454,9.679,92.934,92.874,6.40786233]
[1772658048655,8.34579097,92.96,92.874,6.40786233]
[1772658049050,9.678,92.944,92.876,6.39173253]
[1772658050456,9.678,92.944,92.88,9.685]
[1772658050648,9.679,92.935,92.876,6.39173253]
[1772658051254,9.678,92.945,92.879,9.685]
[1772658051460,9.678,92.945,92.879,16.07611867]
[1772658051752,9.678,92.945,92.88,6.38371676]
[1772658052164,8.34579097,92.94,92.85,6.38371676]
[1772658053455,9.68,92.927,92.863,16.07071676]
[1772658053651,9.68,92.927,92.863,6.38371676]
[1772658053851,8.34579097,92.94,92.863,6.38371676]
[1772658054853,8.34579097,92.92,92.84,6.3754669]
[1772658055053,8.34579097,92.9,92.821,6.3754669]
[1772658055860,9.685,92.877,92.821,6.3754669]
[1772658056057,8.34579097,92.9,92.821,6.3754669]
[1772658056650,8.34579097,92.9,92.791,6.38430961]
[1772658056858,8.34579097,92.88,92.791,6.38430961]
[1772658057455,19.368,92.894,92.791,6.38430961]
[1772658057657,8.34579097,92.88,92.791,6.38430961]
[1772658058056,19.371,92.878,92.791,6.38430961]
[1772658058259,8.34579097,92.87,92.791,6.38430961]
[1772658059158,9.69,92.835,92.791,6.38430961]
[1772658059750,9.691,92.827,92.791,6.38430961]
[1772658060154,8.34579097,92.87,92.791,6.38430961]
[1772658060359,8.34579097,92.87,92.752,6.40412274]
[1772658060756,9.69,92.835,92.771,6.40412274]
[1772658060962,8.34579097,92.88,92.773,6.40412274]
[1772658061355,9.69,92.835,92.773,6.40412274]
[1772658062357,9.69,92.835,92.773,16.10012274]
[1772658062556,9.69,92.835,92.774,6.44017983]
[1772658062757,7.15897952,92.88,92.791,6.44017983]
[1772658063158,9.689,92.846,92.793,6.44017983]
[1772658063759,7.15897952,92.88,92.793,6.44017983]
[1772658063960,7.15897952,92.86,92.774,6.46399501]
[1772658064159,7.15897952,92.84,92.756,6.46399501]
[1772658064360,7.15897952,92.84,92.612,26.40657687]
[1772658064361,7.15897952,92.8,92.734,6.46399501]
[1772658064557,7.15897952,92.78,92.675,6.46399501]
[1772658064763,7.15897952,92.76,92.686,1.87619284]
[1772658064966,9.699,92.75,92.687,6.46399501]
[1772658065263,9.699,92.75,92.691,6.46399501]
[1772658065456,7.15897952,92.76,92.691,6.46399501]
[1772658065763,9.699,92.749,92.709,0.06809173]
[1772658066457,9.7,92.739,92.709,0.06809173]
[1772658066658,7.15897952,92.76,92.709,0.06809173]
[1772658067062,7.15897952,92.78,92.709,0.06809173]
[1772658067467,19.388,92.798,92.709,0.06809173]
[1772658067468,7.15897952,92.75,92.709,0.06809173]
[1772658067661,7.15897952,92.75,92.671,6.46771113]
[1772658067962,7.15897952,92.76,92.671,6.46771113]
[1772658068363,7.15897952,92.78,92.693,6.65014338]
[1772658068761,7.15897952,92.82,92.738,6.65014338]
[1772658069364,9.693,92.804,92.74,6.65014338]
[1772658070168,9.692,92.815,92.742,6.69650489]
[1772658071066,9.692,92.815,92.746,6.69650489]
[1772658071864,9.691,92.827,92.766,6.72037579]
[1772658072063,7.15897952,92.86,92.766,6.72037579]
[1772658072372,9.689,92.84,92.771,6.72037579]
[1772658072566,7.15897952,92.86,92.771,6.72037579]
[1772658072867,7.15897952,92.87,92.771,6.72037579]
[1772658073076,9.687,92.863,92.796,9.694]
[1772658073465,9.687,92.863,92.797,6.72037579]
[1772658073966,9.688,92.853,92.797,6.72037579]
[1772658074273,7.15897952,92.87,92.797,6.72037579]
[1772658074474,7.15897952,92.87,92.775,6.69432357]
[1772658075281,7.15897952,92.85,92.701,6.69432357]
[1772658075475,7.15897952,92.83,92.731,6.69432357]
[1772658076178,7.15897952,92.79,92.71,6.66995885]
[1772658076380,7.15897952,92.82,92.71,6.66995885]
[1772658076675,9.694,92.8,92.732,9.7]
[1772658076880,9.694,92.8,92.733,6.66995885]
[1772658077177,7.15897952,92.82,92.733,6.66995885]
[1772658077379,9.693,92.803,92.736,6.66995885]
[1772658077680,7.15897952,92.82,92.736,6.66995885]
[1772658077880,9.695,92.783,92.736,6.66995885]
[1772658079079,9.696,92.771,92.711,6.70035382]
[1772658079778,9.698,92.761,92.711,6.70035382]
[1772658079977,7.15897952,92.78,92.711,6.70035382]
[1772658080874,9.698,92.761,92.711,6.70035382]
[1772658081273,9.699,92.75,92.711,6.70035382]
[1772658081478,7.15897952,92.78,92.65,293.0]
[1772658081479,7.15897952,92.78,92.68,6.7005822]
[1772658081980,9.7,92.741,92.68,6.7005822]
[1772658082480,9.701,92.731,92.68,6.7005822]
[1772658082881,7.15897952,92.78,92.68,6.7005822]
[1772658083287,9.7,92.741,92.681,6.6970122]
[1772658084090,7.15897952,92.8,92.691,6.61496386]
[1772658084889,9.697,92.763,92.704,6.61496386]
[1772658086386,9.697,92.763,92.709,9.703]
[1772658086693,9.697,92.763,92.71,6.54171758]
[1772658086888,7.15897952,92.82,92.716,6.54171758]
[1772658087190,150.677,92.873,92.71,7.15897952]
[1772658087191,7.15897952,92.84,92.731,6.54171758]
[1772658087486,9.693,92.808,92.747,6.54171758]
[1772658087791,150.69,92.864,92.731,6.45392564]
[1772658087792,7.15897952,92.82,92.731,6.45392564]
[1772658088086,150.664,92.88,92.733,6.45392564]
[1772658088286,7.15897952,92.85,92.751,6.45392564]
[1772658088788,7.15897952,92.85,92.752,6.45392564]
[1772658088987,7.15897952,92.81,92.711,6.45392564]
[1772658089286,7.15897952,92.79,92.711,6.45392564]
[1772658089491,9.698,92.758,92.711,6.45392564]
[1772658089787,7.15897952,92.77,92.681,6.36263272]
[1772658090989,7.15897952,92.77,92.683,9.706]
[1772658090990,9.7,92.74,92.683,9.706]
[1772658091394,7.15897952,92.77,92.681,6.36263272]
[1772658091589,9.699,92.744,92.681,6.36263272]
[1772658092092,7.15897952,92.77,92.681,6.36263272]
[1772658092293,7.15897952,92.75,92.681,6.36263272]
[1772658092990,9.701,92.727,92.681,6.36263272]
[1772658093184,9.701,92.727,92.65,7.15897952]
[1772658093185,9.701,92.727,92.658,6.19190499]
[1772658093387,9.702,92.719,92.66,9.708]
[1772658093593,7.15897952,92.75,92.658,6.19190499]
[1772658093986,7.15897952,92.75,92.667,6.19376851]
[1772658094386,7.15897952,92.75,92.62,293.0]
[1772658094387,7.15897952,92.71,92.621,6.19376851]
[1772658094583,9.704,92.697,92.621,6.19376851]
[1772658094792,150.872,92.752,92.548,151.203]
[1772658094793,150.826,92.781,92.66,7.15897952]
[1772658094991,7.15897952,92.74,92.641,6.19376851]
[1772658095194,9.703,92.709,92.641,6.19376851]
[1772658095383,7.15897952,92.7,92.641,6.19376851]
[1772658095583,7.15897952,92.72,92.62,7.15897952]
[1772658095782,9.705,92.687,92.627,6.14283992]
[1772658096184,7.15897952,92.71,92.627,6.14283992]
[1772658096385,7.15897952,92.71,92.472,26.37030018]
[1772658096386,7.15897952,92.69,92.601,6.14283992]
[1772658096590,7.15897952,92.69,92.607,6.14283992]
[1772658096786,7.15897952,92.7,92.607,6.14283992]
[1772658096995,7.15897952,92.72,92.621,6.14283992]
[1772658097292,7.15897952,92.72,92.562,151.181]
[1772658097293,7.15897952,92.68,92.574,6.14283992]
[1772658097490,7.15897952,92.7,92.574,6.14283992]
[1772658097491,7.15897952,92.66,92.574,6.14283992]
[1772658097995,7.15897952,92.7,92.566,1.87838534]
[1772658097996,7.15897952,92.68,92.591,6.24409392]
[1772658098392,9.709,92.65,92.591,6.24409392]
[1772658098591,8.18803815,92.708,92.591,6.24409392]
[1772658098791,7.15897952,92.69,92.591,6.24409392]
[1772658099392,9.706,92.676,92.6,7.15897952]
[1772658099598,9.706,92.676,92.601,6.24409392]
[1772658100095,9.705,92.688,92.605,6.23272632]
[1772658100796,9.705,92.688,92.608,6.23272632]
[1772658101198,9.704,92.7,92.608,6.23272632]
[1772658101397,8.18868779,92.746,92.615,6.23272632]
[1772658101398,7.15897952,92.69,92.615,6.23272632]
[1772658101999,16.86397952,92.69,92.615,6.23272632]
[1772658102197,16.86397952,92.69,92.643,0.06836691]
[1772658102499,9.704,92.702,92.643,0.06836691]
[1772658102696,7.15897952,92.71,92.643,0.06836691]
[1772658103098,7.15897952,92.71,92.615,6.23272632]
[1772658103603,9.706,92.681,92.615,6.23272632]
[1772658103996,7.15897952,92.72,92.621,6.09430171]
[1772658104499,9.705,92.686,92.621,6.09430171]
[1772658105195,9.705,92.686,92.622,6.09430171]
[1772658105399,150.892,92.74,92.622,6.09430171]
[1772658105400,9.707,92.674,92.622,6.09430171]
[1772658105600,7.15897952,92.7,92.622,6.09430171]
[1772658106108,7.15897952,92.73,92.641,6.0808577]
[1772658106296,9.705,92.694,92.641,6.0808577]
[1772658107007,7.15897952,92.73,92.641,6.0808577]
[1772658107205,7.15897952,92.71,92.641,6.0808577]
[1772658107807,7.15897952,92.71,92.641,3.6808577]
[1772658108306,9.707,92.672,92.6,7.15897952]
[1772658109610,9.708,92.662,92.6,7.15897952]
[1772658109809,9.708,92.662,92.601,4.88897438]
[1772658110899,9.707,92.673,92.604,4.88897438]
[1772658111104,7.15897952,92.69,92.604,4.88897438]
[1772658111808,7.15897952,92.67,92.571,4.88271282]
[1772658112512,9.71,92.642,92.574,4.88271282]
[1772658112713,7.15897952,92.67,92.574,4.88271282]